[Event "*** Titled Tuesday 3|2 Blitz"]
[Site "Chess.com"]
[Date "2015.05.05"]
[Round "9"]
[White "GregShahade"]
[Black "bugsbunny444"]
[Result "0-1"]
[WhiteElo "2415"]
[BlackElo "2317"]
[TimeControl "180+2"]
[EndTime "13:11:30 PDT"]
[Termination "bugsbunny444 won by checkmate"]

1. b4 {[%clk 0:03:00]} 1... e5 {[%clk 0:02:59.4]} 2. Bb2 {[%clk 0:03:00.6]} 2...
Bxb4 {[%clk 0:02:57.4]} 3. Bxe5 {[%clk 0:03:01]} 3... Nf6 {[%clk 0:02:58.7]} 4.
Bb2 {[%clk 0:02:59.8]} 4... d5 {[%clk 0:02:49.7]} 5. Nf3 {[%clk 0:03:00.9]} 5...
O-O {[%clk 0:02:50.4]} 6. e3 {[%clk 0:03:01.4]} 6... Re8 {[%clk 0:02:49]} 7. Be2
{[%clk 0:03:02]} 7... c5 {[%clk 0:02:37.8]} 8. O-O {[%clk 0:03:00.6]} 8... Nc6
{[%clk 0:02:38.7]} 9. d3 {[%clk 0:02:23.4]} 9... Bg4 {[%clk 0:02:30.1]} 10. Nbd2
{[%clk 0:02:20.1]} 10... Ba5 {[%clk 0:01:59.7]} 11. h3 {[%clk 0:02:19.4]} 11...
Bh5 {[%clk 0:02:00.3]} 12. Nb3 {[%clk 0:02:19.4]} 12... Bc7 {[%clk 0:01:56.6]}
13. g4 {[%clk 0:02:08.1]} 13... Nxg4 {[%clk 0:01:39.6]} 14. hxg4 {[%clk
0:02:03.7]} 14... Bxg4 {[%clk 0:01:41.5]} 15. Re1 {[%clk 0:00:53.5]} 15... Re6
{[%clk 0:01:35.6]} 16. Bf1 {[%clk 0:00:27.7]} 16... Rg6 {[%clk 0:01:29.6]} 17.
Bg2 {[%clk 0:00:11]} 17... Bh3 {[%clk 0:01:29.5]} 18. Kf1 {[%clk 0:00:11.8]}
18... Rxg2 {[%clk 0:01:14.6]} 19. Ke2 {[%clk 0:00:12.3]} 19... Bg3 {[%clk
0:01:00.1]} 20. Rf1 {[%clk 0:00:12.8]} 20... Bg4 {[%clk 0:00:41.7]} 21. Nd2
{[%clk 0:00:13.7]} 21... Qh4 {[%clk 0:00:36.9]} 22. Qe1 {[%clk 0:00:13.6]} 22...
Re8 {[%clk 0:00:32.4]} 23. Rh1 {[%clk 0:00:11.1]} 23... Qg5 {[%clk 0:00:13]} 24.
Nf1 {[%clk 0:00:05.5]} 24... Rxf2+ {[%clk 0:00:13]} 25. Qxf2 {[%clk 0:00:07.4]}
25... Bxf2 {[%clk 0:00:14]} 26. Kxf2 {[%clk 0:00:09.3]} 26... Qf5 {[%clk
0:00:13.2]} 27. Nh2 {[%clk 0:00:10.2]} 27... Bh5 {[%clk 0:00:09.8]} 28. Rhg1
{[%clk 0:00:11.2]} 28... f6 {[%clk 0:00:10.2]} 29. Rg3 {[%clk 0:00:11.2]} 29...
Ne5 {[%clk 0:00:11.1]} 30. Rag1 {[%clk 0:00:11.6]} 30... Nxf3 {[%clk 0:00:06.7]}
31. Nxf3 {[%clk 0:00:09.9]} 31... g5 {[%clk 0:00:06.5]} 32. Rxg5+ {[%clk
0:00:10.1]} 32... fxg5 {[%clk 0:00:07]} 33. Rxg5+ {[%clk 0:00:12]} 33... Qxg5
{[%clk 0:00:06]} 34. Nxg5 {[%clk 0:00:13.6]} 34... b6 {[%clk 0:00:06.3]} 35. e4
{[%clk 0:00:14.1]} 35... h6 {[%clk 0:00:05.9]} 36. Nh3 {[%clk 0:00:13.2]} 36...
dxe4 {[%clk 0:00:07.3]} 37. dxe4 {[%clk 0:00:14.4]} 37... Rxe4 {[%clk
0:00:07.7]} 38. Bc1 {[%clk 0:00:14.5]} 38... Rc4 {[%clk 0:00:07.6]} 39. Bxh6
{[%clk 0:00:14.2]} 39... Rxc2+ {[%clk 0:00:08.9]} 40. Kg3 {[%clk 0:00:15.7]}
40... Rxa2 {[%clk 0:00:09.6]} 41. Nf4 {[%clk 0:00:16.2]} 41... Bf7 {[%clk
0:00:10.5]} 42. Kh4 {[%clk 0:00:15.4]} 42... Kh7 {[%clk 0:00:11.1]} 43. Bf8
{[%clk 0:00:15.1]} 43... Ra4 {[%clk 0:00:11.4]} 44. Kg5 {[%clk 0:00:15.5]} 44...
Re4 {[%clk 0:00:09.5]} 45. Bd6 {[%clk 0:00:16.7]} 45... Rd4 {[%clk 0:00:09]} 46.
Be5 {[%clk 0:00:16.4]} 46... Rd1 {[%clk 0:00:10]} 47. Kf6 {[%clk 0:00:17.1]}
47... Be8 {[%clk 0:00:09.4]} 48. Ke7 {[%clk 0:00:17.6]} 48... Bc6 {[%clk
0:00:09.3]} 49. Ne6 {[%clk 0:00:15.9]} 49... Re1 {[%clk 0:00:07.4]} 50. Kd6
{[%clk 0:00:16.9]} 50... Be8 {[%clk 0:00:05.3]} 51. Bg3 {[%clk 0:00:17.9]} 51...
Re2 {[%clk 0:00:03.8]} 52. Nc7 {[%clk 0:00:16.9]} 52... Bf7 {[%clk 0:00:04.9]}
53. Nb5 {[%clk 0:00:17.6]} 53... Re6+ {[%clk 0:00:05.4]} 54. Kc7 {[%clk
0:00:17.3]} 54... a6 {[%clk 0:00:06.4]} 55. Nd6 {[%clk 0:00:17.8]} 55... Bg8
{[%clk 0:00:06.4]} 56. Kxb6 {[%clk 0:00:18.7]} 56... c4 {[%clk 0:00:07.9]} 57.
Ka5 {[%clk 0:00:12.5]} 57... c3 {[%clk 0:00:09.4]} 58. Nf5 {[%clk 0:00:12.7]}
58... c2 {[%clk 0:00:10]} 59. Bf4 {[%clk 0:00:14]} 59... Rf6 {[%clk 0:00:06.1]}
60. Nd4 {[%clk 0:00:11]} 60... Rxf4 {[%clk 0:00:06.7]} 61. Nxc2 {[%clk
0:00:12.6]} 61... Bc4 {[%clk 0:00:06.9]} 62. Nb4 {[%clk 0:00:13.2]} 62... Bb5
{[%clk 0:00:06.1]} 63. Nd5 {[%clk 0:00:11.8]} 63... Ra4+ {[%clk 0:00:06.9]} 64.
Kb6 {[%clk 0:00:13.3]} 64... Ra1 {[%clk 0:00:07.6]} 65. Nc3 {[%clk 0:00:14.2]}
65... Kh6 {[%clk 0:00:07.6]} 66. Kc5 {[%clk 0:00:14.7]} 66... Bf1 {[%clk
0:00:08.3]} 67. Kb4 {[%clk 0:00:15.6]} 67... Kg5 {[%clk 0:00:07.9]} 68. Kb3
{[%clk 0:00:16.6]} 68... Bb5 {[%clk 0:00:08]} 69. Kb4 {[%clk 0:00:17.6]} 69...
Rh1 {[%clk 0:00:08.3]} 70. Ka5 {[%clk 0:00:17.7]} 70... Kf4 {[%clk 0:00:09.1]}
71. Kb4 {[%clk 0:00:18]} 71... Ke3 {[%clk 0:00:09.7]} 72. Kb3 {[%clk 0:00:16.8]}
72... Kd3 {[%clk 0:00:10.4]} 73. Kb4 {[%clk 0:00:05.6]} 73... Rh4+ {[%clk
0:00:10.3]} 74. Kb3 {[%clk 0:00:06.4]} 74... Bc4+ {[%clk 0:00:09.1]} 75. Kb2
{[%clk 0:00:03.7]} 75... Rh2+ {[%clk 0:00:09.8]} 76. Ka3 {[%clk 0:00:04.2]}
76... Kxc3 {[%clk 0:00:10]} 77. Ka4 {[%clk 0:00:05.8]} 77... Ra2# {[%clk
0:00:11.1]} 0-1